bitfinex/quotes_SOLUSD_20260211
["timestamp","ask_amount","ask_price","bid_price","bid_amount"]
[1770780017342,0.45680605,82.699,82.671,0.47522977]
[1770780017551,0.45680605,82.699,82.662,12.57268688]
[1770780017866,0.45680605,82.699,82.663,0.47522977]
[1770780018458,0.45680605,82.699,82.664,12.09716442]
[1770780019058,0.45680605,82.697,82.66,0.1]
[1770780019263,0.45680605,82.697,82.664,0.47522977]
[1770780019852,0.45680605,82.697,82.67,10.0061425]
[1770780020064,0.49636361,82.718,82.681,0.47522977]
[1770780020966,0.49636361,82.727,82.691,0.47259214]
[1770780022753,0.49636361,82.719,82.691,0.47259214]
[1770780022955,0.49636361,82.719,82.692,12.09306825]
[1770780023362,0.49636361,82.719,82.686,12.56648966]
[1770780023560,0.49636361,82.718,82.686,12.56648966]
[1770780023777,0.49636361,82.718,82.69,12.09324558]
[1770780023963,0.49024064,82.729,82.693,0.45151359]
[1770780025457,0.49024064,82.729,82.694,12.09277577]
[1770780025653,0.49024064,82.727,82.695,0.45151359]
[1770780025858,0.49024064,82.719,82.694,12.09277577]
[1770780026065,12.57804646,82.728,82.695,0.45151359]
[1770780026252,0.49024064,82.727,82.695,0.45151359]
[1770780027177,10.04077183,82.73,82.695,0.45151359]
[1770780027990,0.49024064,82.729,82.696,12.09248331]
[1770780028154,0.49024064,82.729,82.688,45.72]
[1770780028155,0.49024064,82.719,82.688,45.72]
[1770780028354,0.49024064,82.719,82.688,57.81356315]
[1770780028870,0.49024064,82.719,82.696,12.09248331]
[1770780029488,0.49024064,82.728,82.697,0.45151359]
[1770780029857,30.21096274,82.752,82.701,0.45151359]
[1770780029858,0.49024064,82.738,82.701,0.45151359]
[1770780030074,0.49024064,82.738,82.703,0.45151359]
[1770780030478,0.49024064,82.739,82.703,0.45151359]
[1770780031381,0.49024064,82.749,82.711,0.45151359]
[1770780032069,0.49024064,82.749,82.713,0.45151359]
[1770780032274,0.49024064,82.749,82.712,42.31550439]
[1770780032275,0.49024064,82.759,82.721,0.45151359]
[1770780032780,30.20242267,82.775,82.712,88.07550439]
[1770780032781,10.53101247,82.77,82.731,0.45151359]
[1770780033083,10.04077183,82.79,82.761,0.45151359]
[1770780033289,0.49024064,82.8,82.755,0.45151359]
[1770780033472,10.53101247,82.8,82.761,0.45151359]
[1770780033784,10.04077183,82.79,82.761,0.45151359]
[1770780034086,0.49024064,82.798,82.763,0.45151359]
[1770780034386,0.49024064,82.807,82.77,10.04077183]
[1770780034589,0.49024064,82.807,82.771,0.45151359]
[1770780035688,0.49024064,82.807,82.762,42.28993982]
[1770780035689,10.04077183,82.82,82.781,0.45151359]
[1770780035889,0.49024064,82.818,82.781,0.45151359]
[1770780036055,0.49024064,82.829,82.783,0.45151359]
[1770780036260,0.49024064,82.829,82.791,0.45151359]
[1770780036459,0.49024064,82.819,82.791,0.45151359]
[1770780037474,10.04077183,82.8,82.778,12.08039255]
[1770780037667,10.04077183,82.8,82.73,48.3494722]
[1770780037668,0.49024064,82.799,82.766,45.74]
[1770780037863,90.53488006,82.841,82.761,12.08295328]
[1770780037864,0.49024064,82.789,82.761,12.08295328]
[1770780038064,10.04077183,82.78,82.75,45.78]
[1770780038366,0.49024064,82.799,82.761,0.45151359]
[1770780038663,10.04077183,82.8,82.761,0.45151359]
[1770780038664,0.49024064,82.797,82.761,0.45151359]
[1770780038870,10.04077183,82.8,82.761,0.45151359]
[1770780039460,0.49024064,82.806,82.771,0.45151359]
[1770780039661,10.04077183,82.8,82.771,0.45151359]
[1770780040067,0.49024064,82.799,82.766,45.78]
[1770780040260,0.49024064,82.799,82.766,57.86215065]
[1770780041063,10.04077183,82.8,82.767,0.45151359]
[1770780041375,10.04077183,82.82,82.781,0.45151359]
[1770780041576,10.04077183,82.82,82.783,0.45151359]
[1770780041780,0.49024064,82.819,82.783,0.45151359]
[1770780042180,0.49024064,82.817,82.783,0.45151359]
[1770780042383,0.49024064,82.809,82.775,0.45151359]
[1770780042972,0.49024064,82.809,82.78,10.04077183]
[1770780043375,0.49024064,82.821,82.791,0.45151359]
[1770780043861,0.49024064,82.827,82.791,0.45151359]
[1770780044068,0.49024064,82.799,82.76,10.49228542]
[1770780044283,0.49024064,82.797,82.76,0.45151359]
[1770780044478,0.49024064,82.789,82.759,12.08315755]
[1770780044677,10.04077183,82.78,82.753,57.86415008]
[1770780044987,0.49024064,82.779,82.753,57.86415008]
[1770780045170,0.49024064,82.779,82.753,12.08415008]
[1770780045685,0.49024064,82.797,82.761,0.45151359]
[1770780045991,0.49024064,82.797,82.762,0.45151359]
[1770780046785,0.49024064,82.795,82.763,12.53420754]
[1770780046991,0.49024064,82.795,82.764,0.45151359]
[1770780047385,10.04077183,82.79,82.764,0.45151359]
[1770780047582,0.49024064,82.789,82.756,45.78]
[1770780047789,0.49024064,82.789,82.762,12.08273375]
[1770780048084,10.04077183,82.8,82.764,0.45151359]
[1770780048388,10.04077183,82.8,82.763,12.08269395]
[1770780048389,0.49024064,82.823,82.791,0.45151359]
[1770780048595,10.04077183,82.83,82.793,0.45151359]
[1770780048781,0.49024064,82.809,82.771,0.45151359]
[1770780048975,0.49024064,82.789,82.763,45.8]
[1770780049369,0.49024064,82.789,82.763,57.88261604]
[1770780050288,0.4775814,82.78,82.752,0.46527484]
[1770780050487,0.4775814,82.78,82.755,12.08381644]
[1770780050785,0.4775814,82.78,82.753,12.08406314]
[1770780051593,16.9,82.814,82.753,12.08406314]
[1770780051594,10.04077183,82.81,82.771,0.46527484]
[1770780051890,0.4775814,82.819,82.754,45.8]
[1770780051891,0.4775814,82.819,82.781,0.46527484]
[1770780052187,0.4775814,82.828,82.791,0.46527484]
[1770780052385,0.4775814,82.828,82.793,0.46527484]
[1770780052892,5.13032502,82.853,82.792,45.78]
[1770780052893,12.07117162,82.842,82.811,0.46527484]
[1770780053100,10.04077183,82.84,82.811,0.46527484]
[1770780053284,10.04077183,82.84,82.8,10.04077183]
[1770780053285,0.4775814,82.839,82.807,45.78]
[1770780054192,0.4775814,82.819,82.771,12.08145004]
[1770780054394,0.4775814,82.799,82.765,35.62]
[1770780054894,0.4775814,82.797,82.765,35.62]
[1770780055605,0.4775814,82.789,82.765,35.62]
[1770780055973,12.07758641,82.798,82.765,35.62]
[1770780055974,0.4775814,82.797,82.765,35.62]
[1770780056391,10.02468306,82.79,82.765,35.62]
[1770780056582,10.50226446,82.79,82.765,35.62]
[1770780057185,0.4775814,82.799,82.766,12.08225599]
[1770780057986,0.4775814,82.799,82.755,30.2095499]
[1770780057987,0.4325575,82.789,82.743,0.46527484]
[1770780058189,0.4325575,82.779,82.743,0.46527484]
[1770780059074,0.4325575,82.759,82.73,12.0874024]
[1770780059379,10.02468306,82.74,82.719,45.78]
[1770780059576,0.4325575,82.749,82.715,12.08956008]
[1770780060397,0.4325575,82.77,82.721,0.46527484]
[1770780060606,0.4325575,82.759,82.722,12.08860887]
[1770780060789,0.4325575,82.749,82.718,0.46527484]
[1770780061005,0.4325575,82.739,82.707,45.78]
[1770780061177,0.4325575,82.739,82.709,12.09052847]
[1770780061382,30.20934133,82.756,82.709,45.8]
[1770780061383,10.02468306,82.73,82.709,45.8]
[1770780061578,10.45724056,82.73,82.709,45.8]
[1770780061980,10.45724056,82.73,82.705,12.09113576]
[1770780061981,10.02468306,82.73,82.705,12.09113576]
[1770780062199,10.02468306,82.72,82.705,12.09113576]
[1770780062590,10.02468306,82.72,82.702,45.82]
[1770780064292,10.02468306,82.73,82.704,0.46527484]
[1770780064605,10.02468306,82.72,82.704,0.46527484]
[1770780065500,12.51926081,82.736,82.704,0.46527484]
[1770780065701,10.02468306,82.72,82.704,0.46527484]
[1770780065899,10.02468306,82.72,82.705,12.0911674]
[1770780066105,10.02468306,82.71,82.682,0.46527484]
[1770780066284,10.02468306,82.7,82.682,0.46527484]
[1770780066608,10.02468306,82.73,82.691,0.46527484]
[1770780066903,10.02468306,82.73,82.693,0.46527484]
[1770780067594,10.02468306,82.73,82.695,0.46527484]
[1770780067796,10.02468306,82.72,82.695,0.46527484]
[1770780068587,10.45724056,82.72,82.692,45.88]
[1770780069202,10.45724056,82.72,82.674,30.23889706]
[1770780069203,0.4325575,82.719,82.675,0.46527484]
[1770780069402,10.02468306,82.72,82.685,0.46527484]
[1770780069711,10.02468306,82.71,82.689,0.46527484]
[1770780070498,0.4325575,82.709,82.678,0.46527484]
[1770780070700,0.4325575,82.709,82.679,45.92]
[1770780070904,0.4325575,82.709,82.68,0.46527484]
[1770780071101,10.02468306,82.7,82.679,45.92]
[1770780071303,10.02468306,82.69,82.67,0.46527484]
[1770780071610,10.02468306,82.69,82.674,12.09561801]
[1770780071809,10.02468306,82.69,82.668,45.92]
[1770780072002,0.4325575,82.689,82.668,45.92]
[1770780072392,30.22659987,82.709,82.669,0.46527484]
[1770780072393,10.02468306,82.69,82.669,0.46527484]
[1770780072593,0.4325575,82.699,82.669,0.46527484]
[1770780072893,0.4325575,82.699,82.671,12.56141496]
[1770780073087,10.02468306,82.7,82.672,0.46527484]
[1770780073502,10.02468306,82.7,82.673,45.96]
[1770780074105,10.02468306,82.7,82.674,12.09570118]
[1770780075810,10.02468306,82.7,82.674,12.56097602]
[1770780076798,0.4325575,82.726,82.675,0.46527484]
[1770780076999,109.50048386,82.875,82.691,0.46527484]
[1770780077000,0.4325575,82.754,82.691,0.46527484]
[1770780077210,12.08211001,82.767,82.711,0.46527484]
[1770780077211,10.02468306,82.75,82.711,0.46527484]
[1770780077415,10.02468306,82.74,82.713,0.46527484]
[1770780077710,10.02468306,82.75,82.713,0.46527484]
[1770780077917,10.02468306,82.74,82.713,0.46527484]
[1770780078093,10.02468306,82.75,82.713,0.46527484]
[1770780078291,10.02468306,82.74,82.715,0.46527484]
[1770780078716,10.02468306,82.73,82.715,0.46527484]
[1770780078911,0.4325575,82.745,82.715,0.46527484]
[1770780079111,10.02468306,82.74,82.715,0.46527484]
[1770780079410,10.02468306,82.74,82.716,12.08955945]
[1770780080199,3.49,83.982,82.716,12.08955945]
[1770780080200,10.02468306,82.75,82.717,0.46759784]
[1770780081014,10.02468306,82.79,82.743,0.46759784]
[1770780081217,10.02468306,82.78,82.743,0.46759784]
[1770780081408,10.02468306,82.79,82.751,0.46759784]
[1770780081714,10.02468306,82.78,82.751,0.46759784]
[1770780082216,10.02468306,82.79,82.751,0.46759784]
[1770780083018,10.02468306,82.79,82.75,10.02468306]
[1770780083019,10.02468306,82.79,82.752,42.29505026]
[1770780083222,10.02468306,82.79,82.753,0.46759784]
[1770780083520,10.02468306,82.8,82.77,10.02468306]
[1770780083724,10.02468306,82.8,82.771,0.46759784]
[1770780083908,10.02468306,82.78,82.753,0.48345161]
[1770780084423,0.4325575,82.769,82.737,47.16]
[1770780084628,0.4325575,82.759,82.723,0.48345161]
[1770780084924,10.02468306,82.8,82.752,0.48345161]
[1770780084925,10.02468306,82.78,82.752,0.48345161]
[1770780085102,10.02468306,82.78,82.753,12.08415404]
[1770780086115,10.02468306,82.78,82.754,0.48345161]
[1770780087400,10.02468306,82.78,82.755,12.083862]
[1770780087620,10.45724056,82.79,82.756,0.48345161]
[1770780087919,10.02468306,82.78,82.756,0.48345161]
[1770780088600,0.4325575,82.79,82.756,0.48345161]
[1770780088802,10.45724056,82.79,82.756,0.48345161]
[1770780089123,10.4590463,82.79,82.756,0.48345161]
[1770780089905,10.4590463,82.79,82.758,0.48345161]
[1770780090106,10.0264888,82.79,82.758,0.48345161]
[1770780091599,12.07651745,82.806,82.749,0.48345161]
[1770780091600,0.4325575,82.779,82.749,0.48345161]
[1770780092110,10.0264888,82.79,82.751,0.48345161]
[1770780092924,10.0264888,82.8,82.76,10.0264888]
[1770780093131,10.0264888,82.8,82.761,0.48345161]
[1770780093301,0.4325575,82.799,82.761,0.48345161]
[1770780093807,12.07744054,82.799,82.751,0.48345161]
[1770780094003,10.0264888,82.79,82.751,0.48345161]
[1770780094205,10.0264888,82.78,82.753,0.48345161]
[1770780096122,0.4325575,82.798,82.728,96.70152984]
[1770780096123,0.4325575,82.798,82.755,42.293517]
[1770780096322,10.0264888,82.79,82.756,0.48345161]
[1770780096522,10.0264888,82.8,82.761,0.48345161]
[1770780097031,10.0264888,82.82,82.781,0.48345161]
[1770780097217,0.4325575,82.819,82.781,0.48345161]
[1770780097526,10.0264888,82.81,82.781,0.48345161]
[1770780097728,10.4590463,82.81,82.781,0.48345161]
[1770780098026,10.0264888,82.81,82.781,0.48345161]
[1770780098336,42.24451122,82.851,82.757,47.0]
[1770780098337,10.0264888,82.79,82.761,0.48345161]
[1770780099026,10.0264888,82.8,82.761,0.48345161]
[1770780099206,10.0264888,82.81,82.771,0.48345161]
[1770780099414,10.0264888,82.82,82.781,0.48345161]
[1770780099924,10.0264888,82.81,82.781,0.48345161]
[1770780100128,10.0264888,82.8,82.767,0.48345161]
[1770780100326,10.0264888,82.8,82.769,0.48345161]
[1770780100826,0.4325575,82.809,82.771,0.48345161]
[1770780101032,10.0264888,82.8,82.771,0.48345161]
[1770780101717,0.4325575,82.818,82.781,0.48345161]
[1770780101921,5.13032502,82.852,82.77,10.0264888]
[1770780101922,0.4325575,82.809,82.77,10.0264888]
[1770780102132,10.0264888,82.8,82.769,0.48345161]
[1770780102331,10.0264888,82.8,82.771,0.48345161]
[1770780102916,10.0264888,82.8,82.76,10.0264888]
[1770780102917,0.4325575,82.779,82.741,0.48345161]
[1770780103131,10.0264888,82.77,82.745,12.08518807]
[1770780103429,10.0264888,82.77,82.749,12.08472567]
[1770780103637,10.0264888,82.78,82.751,0.48345161]
[1770780103826,10.0264888,82.8,82.771,0.48345161]
[1770780104345,10.0264888,82.79,82.77,12.0816721]
[1770780104518,10.0264888,82.79,82.763,0.48345161]
[1770780105832,0.4325575,82.799,82.75,47.40345161]
[1770780105833,10.0264888,82.77,82.75,47.40345161]
[1770780106041,10.0264888,82.77,82.75,12.08455183]
[1770780107019,10.0264888,82.77,82.742,12.08576055]
[1770780107225,10.0264888,82.77,82.743,0.48345161]
[1770780107414,0.4325575,82.793,82.743,0.48345161]
[1770780107620,0.4325575,82.779,82.743,0.48345161]
[1770780107834,10.0264888,82.77,82.743,0.48345161]
[1770780108042,10.0264888,82.77,82.715,48.35873728]
[1770780108043,0.4325575,82.749,82.711,0.48345161]
[1770780109349,0.4325575,82.749,82.713,0.48345161]
[1770780109936,0.4325575,82.729,82.677,0.48345161]
[1770780110139,0.4325575,82.729,82.652,48.39555127]
[1770780110140,10.4590463,82.72,82.688,12.09364141]
[1770780110446,10.0264888,82.71,82.673,30.23956069]
[1770780110644,42.29709478,82.748,82.691,0.46707079]
[1770780110645,10.0264888,82.73,82.691,0.46707079]
[1770780110846,10.0264888,82.74,82.701,0.46707079]
[1770780111226,10.0264888,82.74,82.711,0.46707079]
[1770780111432,10.0264888,82.74,82.7,10.0264888]
[1770780111433,0.4325575,82.739,82.701,0.46707079]
[1770780111747,0.4325575,82.739,82.71,12.0903629]
[1770780112057,0.4325575,82.729,82.691,0.46707079]
[1770780112229,0.4325575,82.729,82.698,12.09217289]
[1770780112435,0.4325575,82.729,82.699,0.46707079]
[1770780113036,0.4325575,82.729,82.697,12.09226467]
[1770780113240,12.54849448,82.72,82.697,12.09226467]
[1770780113746,12.54849448,82.72,82.69,12.09336074]
[1770780114347,0.4325575,82.719,82.69,12.09336074]
[1770780114525,12.54849448,82.7,82.676,12.09526947]
[1770780115226,0.4325575,82.749,82.691,0.46707079]
[1770780115423,12.98105198,82.73,82.701,0.46707079]
[1770780115646,12.54849448,82.73,82.701,0.46707079]
[1770780115945,12.54849448,82.73,82.702,12.091606]
[1770780116148,12.54849448,82.73,82.703,0.46707079]
[1770780116443,0.4325575,82.739,82.703,0.46707079]
[1770780116654,12.54849448,82.73,82.703,0.46707079]
[1770780117839,60.39823251,82.784,82.679,46.8]
[1770780117840,0.4325575,82.76,82.71,12.54849448]
[1770780118043,12.54849448,82.75,82.711,0.46707079]
[1770780118238,12.54849448,82.75,82.721,0.46707079]
[1770780118738,0.4325575,82.759,82.721,0.46707079]
[1770780119536,0.4325575,82.768,82.721,0.46707079]
[1770780119739,0.4325575,82.768,82.731,0.46707079]
[1770780119938,0.4325575,82.768,82.732,12.08722138]
[1770780120547,0.4325575,82.779,82.741,0.46707079]
[1770780121137,12.98105198,82.8,82.761,0.46707079]
[1770780121332,0.4325575,82.8,82.761,0.46707079]
[1770780121566,0.4325575,82.8,82.77,12.54849448]
[1770780121738,0.4325575,82.789,82.733,0.46707079]
[1770780121939,0.4325575,82.769,82.734,12.08692919]
[1770780122240,0.4325575,82.769,82.735,0.46707079]
[1770780122644,0.4325575,82.784,82.75,12.54849448]
[1770780122842,0.4325575,82.784,82.741,0.46707079]
[1770780122843,0.4325575,82.779,82.741,0.46707079]
[1770780123738,0.4325575,82.779,82.734,42.30425217]
[1770780123739,12.98105198,82.79,82.751,0.46707079]
[1770780123939,0.4325575,82.789,82.753,0.46707079]
[1770780124454,0.4325575,82.809,82.771,0.46707079]
[1770780124841,0.4325575,82.817,82.771,0.46707079]
[1770780125044,12.54849448,82.81,82.771,0.46707079]
[1770780125445,0.4325575,82.817,82.78,12.54849448]
[1770780125863,0.4325575,82.817,82.781,0.46707079]
[1770780126257,12.07368654,82.825,82.768,46.64]
[1770780126258,0.4325575,82.829,82.783,0.46707079]
[1770780126551,0.4325575,82.842,82.791,0.46707079]
[1770780126751,0.4325575,82.859,82.821,0.46707079]
[1770780126955,0.4325575,82.829,82.783,0.46707079]
[1770780127464,0.4325575,82.829,82.79,12.54849448]
[1770780127664,0.4325575,82.829,82.791,0.46707079]
[1770780127862,0.4325575,82.819,82.782,12.07992075]
[1770780128061,0.4325575,82.819,82.783,0.46707079]
[1770780128262,0.4325575,82.839,82.801,12.07714882]
[1770780128460,0.4325575,82.839,82.802,0.46707079]
[1770780128762,0.4325575,82.829,82.801,12.07714882]
[1770780129789,0.4325575,82.829,82.782,47.08707079]
[1770780130070,12.07160878,82.839,82.782,46.62]
[1770780130071,0.4325575,82.819,82.782,46.62]
[1770780130453,0.4325575,82.817,82.782,46.62]
[1770780130762,0.4325575,82.817,82.783,12.07977483]
[1770780132054,0.4325575,82.827,82.79,12.54849448]
[1770780132260,0.4325575,82.827,82.8,12.54849448]
[1770780132459,0.4325575,82.827,82.791,0.46707079]
[1770780133179,0.4325575,82.827,82.8,12.54849448]
[1770780133360,0.4325575,82.838,82.801,0.46707079]
[1770780134477,0.4325575,82.836,82.8,12.54849448]
[1770780134685,0.4325575,82.829,82.793,12.54537298]
[1770780134893,0.4325575,82.829,82.788,12.07893955]
[1770780135051,0.4325575,82.829,82.783,47.08707079]
[1770780135052,0.4325575,82.819,82.783,46.62]
[1770780135753,0.4325575,82.819,82.784,0.46707079]
[1770780135977,0.4325575,82.819,82.787,12.07917519]
[1770780136468,12.54849448,82.85,82.784,0.46707079]
[1770780136469,0.4325575,82.829,82.791,0.46707079]
[1770780136666,12.07306619,82.829,82.791,0.46707079]
[1770780136866,0.4325575,82.828,82.791,0.46707079]
[1770780137074,0.4325575,82.828,82.8,13.01556527]
[1770780137574,0.4325575,82.828,82.8,0.46707079]
[1770780138278,0.4325575,82.828,82.8,13.01556527]
[1770780138477,0.4325575,82.828,82.799,46.6]
[1770780138478,0.4325575,82.844,82.81,12.54849448]
[1770780138651,12.07102591,82.843,82.811,0.46707079]
[1770780138856,0.4325575,82.842,82.811,0.46707079]
[1770780139080,0.4325575,82.829,82.799,46.6]
[1770780139280,0.4325575,82.829,82.797,12.07763015]
[1770780139685,0.4325575,82.829,82.801,12.07704726]
[1770780139867,0.4325575,82.84,82.81,13.01556527]
[1770780140378,0.4325575,82.84,82.801,12.07704726]
[1770780140379,0.4325575,82.839,82.807,46.6]
[1770780140571,12.0717545,82.838,82.807,46.6]
[1770780140778,0.4325575,82.837,82.807,46.6]
[1770780141780,0.4325575,82.837,82.808,12.07612791]
[1770780142086,0.4325575,82.848,82.811,0.48098743]
[1770780142480,0.4325575,82.848,82.811,47.08098743]
[1770780143064,0.4325575,82.848,82.812,12.55653203]
[1770780143261,0.4325575,82.848,82.812,59.15653203]
[1770780143476,0.4325575,82.848,82.813,0.48098743]
[1770780143673,0.4325575,82.848,82.812,58.6755446]
[1770780143674,0.4325575,82.848,82.821,0.47440515]
[1770780143884,0.4325575,82.859,82.821,0.47440515]
[1770780144580,0.4325575,82.859,82.83,12.54849448]
[1770780144782,0.2,82.87,82.841,0.47440515]
[1770780145089,0.2,82.87,82.843,0.47440515]
[1770780145790,0.4325575,82.859,82.838,46.6]
[1770780145965,12.54849448,82.85,82.826,46.58]
[1770780146169,0.4325575,82.849,82.826,46.58]
[1770780146889,0.4325575,82.849,82.821,46.58]
[1770780147083,0.4325575,82.868,82.83,13.02289963]
[1770780147478,0.4325575,82.868,82.831,0.47440515]
[1770780148303,12.74849448,82.87,82.823,42.25879284]
[1770780148304,0.2,82.87,82.85,12.54849448]
[1770780148599,0.2,82.87,82.847,46.6]
[1770780148768,0.2,82.87,82.84,12.54849448]
[1770780148769,0.2,82.87,82.846,46.62]
[1770780149292,0.4325575,82.859,82.824,46.6]
[1770780149465,0.4325575,82.849,82.824,46.6]
[1770780151287,0.4325575,82.858,82.824,46.6]
[1770780151495,12.51425471,82.86,82.826,0.47440515]
[1770780151673,0.4325575,82.867,82.831,0.47440515]
[1770780152091,0.4325575,82.867,82.84,12.51425471]
[1770780152405,0.2,82.87,82.841,0.47440515]
[1770780152575,12.71425471,82.87,82.83,12.51425471]
[1770780152780,0.4325575,82.869,82.832,0.47440515]
[1770780152976,12.71425471,82.87,82.832,0.47440515]
[1770780153180,12.71425471,82.87,82.834,0.47440515]
[1770780153488,12.71425471,82.87,82.833,46.7]
[1770780153489,12.71425471,82.87,82.836,0.47440515]
[1770780153674,0.4325575,82.869,82.836,0.47440515]
[1770780154081,0.4325575,82.868,82.836,0.47440515]
[1770780154992,0.4325575,82.849,82.81,12.51425471]
[1770780155191,0.4325575,82.849,82.819,0.47440515]
[1770780155495,0.4325575,82.849,82.82,25.06303802]
[1770780155891,0.4325575,82.858,82.821,0.47440515]
[1770780156680,12.51425471,82.85,82.821,0.47440515]
[1770780156992,12.94681221,82.85,82.821,0.47440515]
[1770780157494,12.94681221,82.85,82.808,30.19023269]
[1770780157495,0.4325575,82.839,82.811,46.7]
[1770780157992,12.51425471,82.82,82.789,0.47440515]
[1770780158198,12.94681221,82.82,82.79,58.77868682]
[1770780159303,54.75932063,82.85,82.79,46.7]
[1770780159304,12.51425471,82.8,82.79,46.7]
[1770780159513,0.4325575,82.807,82.79,46.7]
[1770780159998,12.51425471,82.81,82.79,46.7]
[1770780160180,0.4325575,82.816,82.791,12.07860757]
[1770780160382,12.51425471,82.82,82.791,12.07860757]
[1770780161275,12.51425471,82.82,82.792,0.47440515]
[1770780161594,0.4325575,82.826,82.794,0.47440515]
[1770780161975,12.51425471,82.82,82.794,0.47440515]
[1770780163098,30.17669346,82.846,82.801,0.47440515]
[1770780163099,12.51425471,82.84,82.801,0.47440515]
[1770780163801,12.51425471,82.84,82.803,0.47440515]
[1770780164194,12.51425471,82.84,82.802,12.07700297]
[1770780164195,12.51425471,82.82,82.802,12.07700297]
[1770780164491,24.58581966,82.84,82.803,0.47440515]
[1770780166090,12.51425471,82.84,82.805,0.47440515]
[1770780166384,12.51425471,82.85,82.811,0.47440515]
[1770780166701,0.4325575,82.839,82.804,12.07671126]
[1770780166883,12.51425471,82.83,82.804,12.07671126]
[1770780167294,0.4325575,82.839,82.804,12.07671126]
[1770780167607,0.4325575,82.839,82.805,0.47440515]
[1770780168199,12.0717545,82.838,82.807,0.47440515]
[1770780169484,0.4325575,82.829,82.799,46.74]
[1770780169978,12.0717545,82.838,82.807,0.47440515]
[1770780170805,0.4325575,82.837,82.808,12.07612791]
[1770780171700,0.4325575,82.837,82.679,20.11225624]
[1770780171701,0.4325575,82.819,82.781,0.45720944]
[1770780171906,12.51425471,82.81,82.788,12.07903654]
[1770780172410,0.4325575,82.814,82.782,12.07992075]
[1770780172704,0.4325575,82.814,82.783,0.45720944]
[1770780173900,52.06,82.833,82.782,12.07992075]
[1770780173901,0.4325575,82.837,82.801,0.45720944]
[1770780174101,24.58571777,82.84,82.801,0.45720944]
[1770780174603,12.51425471,82.84,82.802,12.07700297]
[1770780174795,12.51425471,82.84,82.776,48.32291417]
[1770780174796,12.51480354,82.83,82.797,12.07761673]
[1770780174999,0.4325575,82.819,82.793,12.07831388]
[1770780175206,0.4325575,82.819,82.789,0.45720944]
[1770780175688,12.51480354,82.82,82.792,0.45720944]
[1770780176201,0.4325575,82.828,82.799,12.07729795]
[1770780176405,0.4325575,82.828,82.799,12.53450739]
[1770780176612,12.51480354,82.83,82.803,0.45720944]
[1770780177004,12.07306619,82.829,82.803,0.45720944]
[1770780177190,0.4325575,82.828,82.797,12.07766727]
[1770780177508,0.4325575,82.828,82.798,0.45720944]
[1770780180416,0.4325575,82.828,82.8,0.45720944]
[1770780180804,12.07335772,82.827,82.8,0.45720944]
[1770780181118,0.4325575,82.819,82.792,46.7]
[1770780181413,12.51480354,82.83,82.8,0.45720944]
[1770780181916,12.50125251,82.859,82.821,0.45720944]
[1770780182093,12.50125251,82.859,82.82,12.51480354]
[1770780182094,12.50125251,82.859,82.823,0.45720944]
[1770780182592,12.50125251,82.859,82.825,0.45720944]
[1770780182790,12.51480354,82.86,82.83,12.51480354]
[1770780182995,12.06808331,82.864,82.831,0.45720944]
[1770780183205,12.06732853,82.869,82.84,12.51480354]
[1770780183410,0.4325575,82.868,82.831,0.45720944]
[1770780184695,12.06732853,82.869,82.833,0.45720944]
[1770780184921,0.2,82.87,82.841,0.45720944]
[1770780186115,12.06723865,82.869,82.841,0.45720944]
[1770780187901,12.06723865,82.869,82.842,0.45720944]
[1770780188103,0.2,82.87,82.842,0.45720944]
[1770780188920,0.2,82.87,82.851,0.45720944]
[1770780189117,0.2,82.87,82.852,0.45720944]
[1770780189533,0.2,82.87,82.851,12.06975257]
[1770780189534,12.06438727,82.889,82.861,0.45720944]
[1770780189736,18.75761785,82.88,82.853,0.45720944]
[1770780189949,0.4830311,82.889,82.853,0.45720944]
[1770780190108,0.4830311,82.889,82.86,18.75761785]
[1770780190420,31.02185764,82.89,82.861,0.45720944]
[1770780190630,0.2,82.89,82.871,0.45720944]
[1770780191210,0.2,82.89,82.873,0.45720944]
[1770780191631,0.2,82.89,82.872,12.06680181]
[1770780191632,31.01899441,82.91,82.874,0.45720944]
[1770780191829,0.2,82.91,82.881,0.45720944]
[1770780192525,0.2,82.92,82.891,0.45720944]
[1770780192835,0.2,82.92,82.893,0.45720944]
[1770780193132,0.2,82.92,82.901,0.45720944]
[1770780193350,0.2,82.92,82.902,58.74243516]
[1770780193632,0.2,82.92,82.903,0.45720944]
[1770780194916,0.2,82.92,82.904,0.45720944]
[1770780195532,0.2,82.92,82.891,30.15989138]
[1770780195533,0.2,82.93,82.911,0.45720944]
[1770780195730,0.2,82.93,82.912,0.45720944]
[1770780196140,18.75761785,82.95,82.921,0.45720944]
[1770780196442,0.4830311,82.951,82.921,0.45720944]
[1770780196642,0.6830311,82.96,82.93,18.75761785]
[1770780196835,0.6830311,82.96,82.93,19.21482729]
[1770780197145,0.2,82.96,82.94,18.75761785]
[1770780197347,0.2,82.96,82.931,0.45720944]
[1770780197348,0.2,82.96,82.938,46.7]
[1770780197551,1e-08,82.96,82.95,18.75761785]
[1770780198047,1e-08,82.96,82.951,0.45720944]